fUST/lending_fUST_20260110
["ID","MTS","AMOUNT","RATE_DAILY","PERIOD"]
[401148557,1767977492649,-250.0,0.000202,10]
[401148558,1767977492659,-472.2,0.00020239,2]
[401148559,1767977492668,-6143.0,0.00020248,2]
[401148560,1767977492678,-600.0,0.0002027,2]
[401148561,1767977492688,-403.0,0.00020278,2]
[401148562,1767977492698,-654.53799371,0.00020286,10]
[401148563,1767977492708,-151.0,0.000203,3]
[401148564,1767977492717,-250.0,0.000203,10]
[401148565,1767977492726,-6143.0,0.00020385,2]
[401148566,1767977492735,-161.99,0.000204,2]
[401148567,1767977492744,-164.12,0.000204,2]
[401148568,1767977492754,-151.0,0.000204,4]
[401148569,1767977492763,-250.0,0.000204,10]
[401148570,1767977492773,-403.0,0.00020444,2]
[401148571,1767977492785,-168.0,0.00020453,2]
[401148572,1767977492795,-731.4967886,0.00020463,2]
[401148573,1767977492804,-595.37131296,0.00020493,2]
[401148574,1767977492814,-2876.18991768,0.00020493,2]
[401148575,1767977492823,-1610.24,0.000205,2]
[401148576,1767977492833,-250.0,0.000205,10]
[401148577,1767977492842,-6143.0,0.00020522,2]
[401148578,1767977492851,-1836.608964,0.00020548,2]
[401148579,1767977492862,-407.8922,0.000206,10]
[401148580,1767977492871,-1388.41817002,0.0002061,2]
[401148581,1767977492880,-2146.0,0.00020657,2]
[401148582,1767977492889,-628.0,0.00020657,2]
[401148583,1767977492899,-1366.0,0.00020657,2]
[401148584,1767977492909,-3506.82414444,0.00020658,2]
[401148585,1767977492918,-6143.0,0.00020659,2]
[401148586,1767977492927,-35714.32,0.000207,3]
[401148587,1767977492938,-7487.2250973,0.00020743,2]
[401148588,1767977492947,-189.0,0.00020795,3]
[401148589,1767977492956,-6143.0,0.00020796,2]
[401148590,1767977492965,-256.30957052,0.000209,2]
[401148591,1767977492975,-24435.1543903,0.00020912,2]
[401148592,1767977492984,-1107.8261972,0.00020931,2]
[401148593,1767977492993,-6143.0,0.00020933,2]
[401148594,1767977493003,-1000.0,0.00020949,7]
[401148595,1767977493012,-472.2,0.00020999,2]
[401148596,1767977493021,-277.16626728,0.00021,2]
[401148597,1767977493030,-46533.88981491,0.00021,2]
[401148598,1767977493039,-2000.0,0.00021,14]
[401148599,1767977493049,-2000.0,0.00021,14]
[401148600,1767977493058,-570.66,0.00021,14]
[401148601,1767977493067,-2000.0,0.00021,14]
[401148602,1767977493077,-3000.0,0.00021,2]
[401148603,1767977493087,-20522.02,0.00021,2]
[401148604,1767977493095,-151.0,0.00021,2]
[401148605,1767977493104,-177.552931,0.00021,2]
[401148606,1767977493113,-177.552931,0.00021,2]
[401148607,1767977493123,-177.552931,0.00021,2]
[401148608,1767977493132,-597.569554,0.00021,2]
[401148609,1767977493141,-177.552931,0.00021,2]
[401148610,1767977493151,-597.569554,0.00021,2]
[401148611,1767977493160,-597.569554,0.00021,2]
[401148612,1767977493169,-597.569554,0.00021,2]
[401148613,1767977493178,-151.0,0.00021,2]
[401148614,1767977493188,-151.0,0.00021,2]
[401148615,1767977493197,-151.0,0.00021,2]
[401148616,1767977493206,-1000.0,0.00021001,2]
[401148617,1767977493216,-492.0,0.00021001,2]
[401148618,1767977493225,-3000.0,0.0002101,2]
[401148619,1767977493235,-654.53799371,0.0002102,12]
[401148620,1767977493245,-3000.0,0.0002102,2]
[401148621,1767977493255,-3000.0,0.0002103,2]
[401148622,1767977493265,-3000.0,0.0002104,2]
[401148623,1767977493275,-617.40005154,0.00021041,2]
[401148624,1767977493284,-2982.60894464,0.00021041,2]
[401148625,1767977493294,-3000.0,0.0002105,2]
[401148626,1767977493304,-3000.0,0.0002106,2]
[401148627,1767977493313,-6143.0,0.0002107,2]
[401148628,1767977493322,-3000.0,0.0002107,2]
[401148629,1767977493332,-3000.0,0.0002108,2]
[401148630,1767977493341,-3000.0,0.0002109,2]
[401148631,1767977493350,-3000.0,0.000211,2]
[401148632,1767977493359,-3000.0,0.0002111,2]
[401148633,1767977493369,-3000.0,0.0002112,2]
[401148634,1767977493379,-3000.0,0.0002113,2]
[401148635,1767977493389,-3000.0,0.0002114,2]
[401148636,1767977493398,-3000.0,0.0002115,2]
[401148637,1767977493408,-3000.0,0.0002116,2]
[401148638,1767977493417,-3000.0,0.0002117,2]
[401148639,1767977493427,-3000.0,0.0002118,2]
[401148640,1767977493438,-3000.0,0.0002119,2]
[401148641,1767977493448,-3054.379999,0.000212,30]
[401148642,1767977493457,-3000.0,0.000212,2]
[401148643,1767977493466,-6143.0,0.00021207,2]
[401148644,1767977493476,-3000.0,0.0002121,2]
[401148645,1767977493485,-3000.0,0.0002122,2]
[401148646,1767977493494,-3000.0,0.0002123,2]
[401148647,1767977493504,-3000.0,0.0002124,2]
[401148648,1767977493513,-3000.0,0.0002125,2]
[401148649,1767977493522,-3000.0,0.0002126,2]
[401148650,1767977493531,-3000.0,0.0002127,2]
[401148651,1767977493540,-3000.0,0.0002128,2]
[401148652,1767977493549,-3000.0,0.0002129,2]
[401148653,1767977493559,-592.19436054,0.00021298,2]
[401148654,1767977493567,-3000.0,0.000213,2]
[401148655,1767977493577,-3000.0,0.0002131,2]
[401148656,1767977493587,-3000.0,0.0002132,2]
[401148657,1767977493596,-3000.0,0.0002133,2]
[401148658,1767977493605,-3000.0,0.0002134,2]
[401148659,1767977493614,-6143.0,0.00021344,2]
[401148660,1767977493623,-3000.0,0.0002135,2]
[401148661,1767977493632,-3000.0,0.0002136,2]
[401148662,1767977493641,-3000.0,0.0002137,2]
[401148663,1767977493650,-3000.0,0.0002138,2]
[401148664,1767977493659,-3000.0,0.0002139,2]
[401148665,1767977493670,-3000.0,0.000214,2]
[401148666,1767977493679,-3000.0,0.0002141,2]
[401148667,1767977493690,-3000.0,0.0002142,2]
[401148668,1767977493699,-5025.987477,0.0002143,2]
[401148669,1767977493708,-6143.0,0.00021481,2]
[401148670,1767977493718,-1039.20549226,0.000215,2]
[401148671,1767977493727,-12854.43519592,0.000215,2]
[401148672,1767977493737,-6800.0,0.000215,2]
[401148673,1767977493746,-161.99,0.000215,2]
[401148674,1767977493755,-164.12,0.000215,2]
[401148675,1767977493764,-640.24385345,0.00021589,2]
[401148676,1767977493773,-3092.96547559,0.00021589,2]
[401148677,1767977493784,-1610.24,0.000216,2]
[401148678,1767977493794,-6143.0,0.00021618,2]
[401148679,1767977493805,-151.0,0.00021618,2]
[401148680,1767977493813,-151.0,0.00021618,2]
[401148681,1767977493823,-151.0,0.00021618,2]
[401148682,1767977493832,-181.573329,0.000217,2]
[401148683,1767977493841,-177.552931,0.000217,2]
[401148684,1767977493852,-177.552931,0.000217,2]
[401148685,1767977493862,-177.552931,0.000217,2]
[401148686,1767977493871,-597.569554,0.000217,2]
[401148687,1767977493881,-177.552931,0.000217,2]
[401148688,1767977493890,-597.569554,0.000217,2]
[401148689,1767977493899,-597.569554,0.000217,2]
[401148690,1767977493908,-597.569554,0.000217,2]
[401148691,1767977493917,-71428.56,0.000217,3]
[401148692,1767977493927,-654.53799371,0.00021754,13]
[401148693,1767977493937,-6143.0,0.00021755,2]
[401148694,1767977493947,-472.2,0.00021759,2]
[401148695,1767977493956,-5000.0,0.00021841,2]
[401148696,1767977493966,-6143.0,0.00021892,2]
[401148697,1767977493975,-10990.61241856,0.000219,2]
[401148698,1767977493984,-3506.82414444,0.000219,2]
[401148699,1767977493993,-360.217755,0.00021918,2]
[401148700,1767977494002,-151.0,0.00021918,2]
[401148701,1767977494011,-153.033862,0.00021918,2]
[401148702,1767977494020,-299.741664,0.00021918,2]
[401148703,1767977494030,-151.0,0.00021918,2]
[401148704,1767977494039,-151.0,0.00021918,2]
[401148705,1767977494049,-151.0,0.00021918,2]
[401148706,1767977494058,-151.0,0.00021918,2]
[401148707,1767977494066,-151.0,0.00021918,2]
[401148708,1767977494076,-151.0,0.00021918,2]
[401148709,1767977494086,-151.0,0.00021918,2]
[401148710,1767977494096,-157.670016,0.00021918,2]
[401148711,1767977494105,-151.0,0.00021918,2]
[401148712,1767977494114,-252.711016,0.00021918,2]
[401148713,1767977494124,-252.711016,0.00021918,2]
[401148714,1767977494133,-252.711016,0.00021918,2]
[401148715,1767977494143,-252.711016,0.00021918,2]
[401148716,1767977494152,-252.711016,0.00021918,2]
[401148717,1767977494161,-252.711016,0.00021918,2]
[401148718,1767977494171,-252.711016,0.00021918,2]
[401148719,1767977494180,-252.711016,0.00021918,2]
[401148720,1767977494191,-252.711016,0.00021918,2]
[401148721,1767977494200,-252.711016,0.00021918,2]
[401148722,1767977494209,-252.711016,0.00021918,2]
[401148723,1767977494218,-252.711016,0.00021918,2]
[401148724,1767977494227,-157.098609,0.00021918,2]
[401148725,1767977494237,-151.0,0.00021918,2]
[401148726,1767977494247,-205.052042,0.00021918,2]
[401148727,1767977494256,-151.0,0.00021918,2]
[401148728,1767977494265,-166.045168,0.00021918,2]
[401148729,1767977494275,-313.573847,0.00021918,2]
[401148730,1767977494285,-313.573847,0.00021918,2]
[401148731,1767977494294,-313.573847,0.00021918,2]
[401148732,1767977494303,-313.573847,0.00021918,2]
[401148733,1767977494312,-313.573847,0.00021918,2]
[401148734,1767977494322,-313.573847,0.00021918,2]
[401148735,1767977494331,-313.573847,0.00021918,2]
[401148736,1767977494438,-313.573847,0.00021918,2]
[401148737,1767977494455,-313.573847,0.00021918,2]
[401148738,1767977494464,-313.573847,0.00021918,2]
[401148739,1767977494474,-313.573847,0.00021918,2]
[401148740,1767977494483,-313.573847,0.00021918,2]
[401148741,1767977494494,-151.0,0.00021918,2]
[401148742,1767977494503,-151.0,0.00021918,2]
[401148743,1767977494512,-151.0,0.00021918,2]
[401148744,1767977494522,-151.0,0.00021918,2]
[401148745,1767977494531,-151.0,0.00021918,2]
[401148746,1767977494540,-151.0,0.00021918,2]
[401148747,1767977494551,-151.0,0.00021918,2]
[401148748,1767977494561,-151.0,0.00021918,2]
[401148749,1767977494570,-160.065171,0.00021918,2]
[401148750,1767977494579,-151.0,0.00021918,2]
[401148751,1767977494589,-151.0,0.00021918,2]
[401148752,1767977494598,-154.31906,0.00021918,2]
[401148753,1767977494610,-163.657676,0.00021918,2]
[401148754,1767977494620,-163.657676,0.00021918,2]
[401148755,1767977494630,-163.657676,0.00021918,2]
[401148756,1767977494639,-163.657676,0.00021918,2]
[401148757,1767977494649,-163.657676,0.00021918,2]
[401148758,1767977494659,-163.657676,0.00021918,2]
[401148759,1767977494668,-163.657676,0.00021918,2]
[401148760,1767977494678,-163.657676,0.00021918,2]
[401148761,1767977494688,-163.657676,0.00021918,2]
[401148762,1767977494698,-163.657676,0.00021918,2]
[401148763,1767977494707,-163.657676,0.00021918,2]
[401148764,1767977494717,-163.657676,0.00021918,2]
[401148765,1767977494726,-163.657676,0.00021918,2]
[401148766,1767977494736,-163.657676,0.00021918,2]
[401148767,1767977494745,-163.657676,0.00021918,2]
[401148768,1767977494755,-163.657676,0.00021918,2]
[401148769,1767977494764,-151.0,0.00021918,2]
[401148770,1767977494774,-151.0,0.00021918,2]
[401148771,1767977494784,-151.0,0.00021918,2]
[401148772,1767977494795,-151.0,0.00021918,2]
[401148773,1767977494804,-151.0,0.00021918,2]
[401148774,1767977494814,-151.0,0.00021918,2]
[401148775,1767977494826,-151.00004,0.00021918,2]
[401148776,1767977494835,-151.0,0.00021918,2]
[401148777,1767977494844,-151.0,0.00021918,2]
[401148778,1767977494853,-151.0,0.00021918,2]
[401148779,1767977494864,-151.0,0.00021918,2]
[401148780,1767977494873,-151.0,0.00021918,2]
[401148781,1767977494883,-151.0,0.00021918,2]
[401148782,1767977494892,-151.0,0.00021918,2]
[401148783,1767977494900,-151.0,0.00021918,2]
[401148784,1767977494909,-151.0,0.00021918,2]
[401148785,1767977494918,-151.0,0.00021918,2]
[401148786,1767977494927,-189.3332,0.00021918,2]
[401148787,1767977494938,-498.400382,0.00021918,2]
[401148788,1767977494946,-498.400382,0.00021918,2]
[401148789,1767977494955,-498.400382,0.00021918,2]
[401148790,1767977494964,-498.400382,0.00021918,2]
[401148791,1767977494973,-498.400382,0.00021918,2]
[401148792,1767977494983,-498.400382,0.00021918,2]
[401148793,1767977494993,-498.400382,0.00021918,2]
[401148794,1767977495002,-498.400382,0.00021918,2]
[401148795,1767977495011,-498.400382,0.00021918,2]
[401148796,1767977495020,-498.400382,0.00021918,2]
[401148797,1767977495029,-498.400382,0.00021918,2]
[401148798,1767977495037,-498.400382,0.00021918,2]
[401148799,1767977495046,-498.400382,0.00021918,2]
[401148800,1767977495055,-498.400382,0.00021918,2]
[401148801,1767977495064,-498.400382,0.00021918,2]
[401148802,1767977495072,-498.400382,0.00021918,2]
[401148803,1767977495081,-607.260341,0.00021918,2]
[401148804,1767977495090,-607.260341,0.00021918,2]
[401148805,1767977495099,-607.260341,0.00021918,2]
[401148806,1767977495108,-607.260341,0.00021918,2]
[401148807,1767977495117,-607.260341,0.00021918,2]
[401148808,1767977495126,-607.260341,0.00021918,2]
[401148809,1767977495135,-607.260341,0.00021918,2]
[401148810,1767977495144,-607.260341,0.00021918,2]
[401148811,1767977495152,-607.260341,0.00021918,2]
[401148812,1767977495161,-607.260341,0.00021918,2]
[401148813,1767977495170,-607.260341,0.00021918,2]
[401148814,1767977495179,-607.260341,0.00021918,2]
[401148815,1767977495189,-607.260341,0.00021918,2]
[401148816,1767977495200,-607.260341,0.00021918,2]
[401148817,1767977495208,-607.260341,0.00021918,2]
[401148818,1767977495218,-607.260341,0.00021918,2]
[401148819,1767977495226,-151.0,0.00021918,2]
[401148820,1767977495235,-151.0,0.00021918,2]
[401148821,1767977495244,-177.439399,0.00021918,2]
[401148822,1767977495253,-151.0,0.00021918,2]
[401148823,1767977495263,-151.0,0.00021918,2]
[401148824,1767977495272,-222.603614,0.00021918,2]
[401148825,1767977495282,-151.0,0.00021918,2]
[401148826,1767977495291,-151.0,0.00021918,2]
[401148827,1767977495299,-151.0,0.00021918,2]
[401148828,1767977495309,-151.0,0.00021918,2]
[401148829,1767977495318,-224.949842,0.00021918,2]
[401148830,1767977495327,-184816.27170959,0.00022,30]
[401148831,1767977495336,-67455.1394152,0.00022,2]
[401148832,1767977495346,-38571.93431391,0.00022,20]
[401148833,1767977495355,-20522.02,0.00022,2]
[401148834,1767977495364,-151.0,0.00022,2]
[401148835,1767977495373,-252.711016,0.00022,2]
[401148836,1767977495382,-252.711016,0.00022,2]
[401148837,1767977495391,-252.711016,0.00022,2]
[401148838,1767977495400,-252.711016,0.00022,2]
[401148839,1767977495410,-177.552931,0.00022,2]
[401148840,1767977495419,-313.573847,0.00022,2]
[401148841,1767977495428,-313.573847,0.00022,2]
[401148842,1767977495439,-177.552931,0.00022,2]
[401148843,1767977495449,-177.552931,0.00022,2]
[401148844,1767977495458,-313.573847,0.00022,2]
[401148845,1767977495466,-597.569554,0.00022,2]
[401148846,1767977495475,-177.552931,0.00022,2]
[401148847,1767977495484,-597.569554,0.00022,2]
[401148848,1767977495494,-313.573847,0.00022,2]
[401148849,1767977495503,-597.569554,0.00022,2]
[401148850,1767977495512,-597.569554,0.00022,2]
[401148851,1767977495521,-151.0,0.00022,2]
[401148852,1767977495531,-292.4,0.00022,2]
[401148853,1767977495541,-163.657676,0.00022,2]
[401148854,1767977495550,-163.657676,0.00022,2]
[401148855,1767977495559,-163.657676,0.00022,2]
[401148856,1767977495568,-163.657674,0.00022,2]
[401148857,1767977495578,-151.0,0.00022,2]
[401148858,1767977495587,-151.0,0.00022,2]
[401148859,1767977495596,-151.0,0.00022,2]
[401148860,1767977495606,-498.400382,0.00022,2]
[401148861,1767977495615,-498.400382,0.00022,2]
[401148862,1767977495625,-498.400382,0.00022,2]
[401148863,1767977495634,-498.400372,0.00022,2]
[401148864,1767977495643,-151.0,0.00022,2]
[401148865,1767977495652,-607.260341,0.00022,2]
[401148866,1767977495661,-151.0,0.00022,2]
[401148867,1767977495670,-607.260341,0.00022,2]
[401148868,1767977495679,-607.260341,0.00022,2]
[401148869,1767977495690,-607.260332,0.00022,2]
[401148870,1767977495700,-6156.44462292,0.00022029,2]
[401148871,1767977495709,-1000.0,0.00022045,7]
[401148872,1767977495718,-467.25,0.000221,7]
[401148873,1767977495728,-663.93287602,0.00022137,2]
[401148874,1767977495737,-3207.40519818,0.00022137,2]
[401148875,1767977495747,-2859.0683133,0.00022231,2]
[401148876,1767977495755,-341281.23097908,0.000224,2]
[401148877,1767977495765,-191.0,0.00022438,7]
[401148878,1767977495775,-300.0,0.00022466,2]
[401148879,1767977495785,-654.53799371,0.00022488,14]
[401148880,1767977495795,-1005.82056975,0.000225,2]
[401148881,1767977495805,-472.2,0.00022519,2]
[401148882,1767977495814,-395.05035025,0.00022659,31]
[401148883,1767977495824,-688.49839244,0.00022685,2]
[401148884,1767977495833,-3326.07919052,0.00022685,2]
[401148885,1767977495843,-7487.2250973,0.00022686,2]
[401148886,1767977495853,-161.99,0.000227,7]
[401148887,1767977495863,-164.12,0.000227,7]
[401148888,1767977495872,-159.31613234,0.00022833,2]
[401148889,1767977495881,-2000.0,0.00022854,7]
[401148890,1767977495890,-24435.1543903,0.00022871,2]
[401148891,1767977495899,-252.711016,0.00022871,2]
[401148892,1767977495909,-252.711016,0.00022871,2]
[401148893,1767977495919,-252.711016,0.00022871,2]
[401148894,1767977495927,-252.711019,0.00022871,2]
[401148895,1767977495938,-1107.8261972,0.00022891,2]
[401148896,1767977495947,-637.9443706,0.00022894,2]
[401148897,1767977495956,-1610.24,0.000229,14]
[401148898,1767977495966,-174.48553388,0.00022909,2]
[401148899,1767977495975,-198.97497566,0.00022909,2]
[401148900,1767977495985,-210.62092521,0.00022909,2]
[401148901,1767977495994,-1999.999999,0.00023,5]
[401148902,1767977496004,-1041.66666667,0.00023,3]
[401148903,1767977496013,-1041.66666667,0.00023,3]
[401148904,1767977496023,-1041.66666667,0.00023,3]
[401148905,1767977496032,-335.0,0.00023,7]
[401148906,1767977496041,-450.0,0.00023014,2]
[401148907,1767977496050,-177.552931,0.00023065,2]
[401148908,1767977496059,-313.573847,0.00023065,2]
[401148909,1767977496069,-313.573847,0.00023065,2]
[401148910,1767977496078,-177.552931,0.00023065,2]
[401148911,1767977496088,-177.552931,0.00023065,2]
[401148912,1767977496097,-597.569554,0.00023065,2]
[401148913,1767977496107,-313.573847,0.00023065,2]
[401148914,1767977496117,-177.552935,0.00023065,2]
[401148915,1767977496126,-597.569554,0.00023065,2]
[401148916,1767977496136,-313.573839,0.00023065,2]
[401148917,1767977496146,-597.569554,0.00023065,2]
[401148918,1767977496155,-597.569556,0.00023065,2]
[401148919,1767977496165,-738.0,0.00023068,3]
[401148920,1767977496175,-20522.02,0.000231,2]
[401148921,1767977496184,-153.096811,0.000231,2]
[401148922,1767977496195,-1000.0,0.00023101,10]
[401148923,1767977496307,-791.0,0.00023101,10]
[401148924,1767977496317,-1000.0,0.00023141,7]
[401148925,1767977496327,-159.31613234,0.00023153,20]
[401148926,1767977496336,-210.62092521,0.00023184,17]
[401148927,1767977496345,-654.53799371,0.00023221,16]
[401148928,1767977496355,-500.0,0.00023228,2]
[401148929,1767977496365,-713.97283296,0.00023233,2]
[401148930,1767977496375,-3449.14412057,0.00023233,2]
[401148931,1767977496384,-472.2,0.0002328,2]
[401148932,1767977496394,-335.0,0.00023288,7]
[401148933,1767977496403,-643.44194943,0.00023298,2]
[401148934,1767977496412,-467.25,0.000233,7]
[401148935,1767977496422,-348.97106777,0.00023383,2]
[401148936,1767977496431,-1000.0,0.000234,2]
[401148937,1767977496441,-1000.0,0.000234,2]
[401148938,1767977496450,-1000.0,0.000234,2]
[401148939,1767977496460,-1000.0,0.000234,2]
[401148940,1767977496469,-1000.0,0.000234,2]
[401148941,1767977496478,-1000.0,0.000234,2]
[401148942,1767977496488,-1000.0,0.000234,2]
[401148943,1767977496497,-1000.0,0.000234,2]
[401148944,1767977496506,-1000.0,0.000234,2]
[401148945,1767977496515,-1200.0,0.00023423,2]
[401148946,1767977496524,-210.62092521,0.0002346,32]
[401148947,1767977496533,-159.31613234,0.00023474,38]
[401148948,1767977496542,-1000.0,0.000235,2]
[401148949,1767977496552,-348.97106777,0.00023523,9]
[401148950,1767977496562,-600.0,0.00023562,2]
[401148951,1767977496571,-10990.61241847,0.00023575,2]
[401148952,1767977496581,-500.0,0.00023638,2]
[401148953,1767977496590,-2146.0,0.00023657,2]
[401148954,1767977496599,-628.0,0.00023657,2]
[401148955,1767977496608,-1366.0,0.00023657,2]
[401148956,1767977496617,-348.97106777,0.00023664,17]
[401148957,1767977496626,-5000.0,0.00023698,2]
[401148958,1767977496636,-2000.0,0.00023712,7]
[401148959,1767977496645,-500.0,0.00023724,2]
[401148960,1767977496655,-210.62092521,0.00023736,48]
[401148961,1767977496664,-740.38982778,0.00023781,2]
[401148962,1767977496674,-3576.76245303,0.00023781,2]
[401148963,1767977496683,-159.31613234,0.00023794,56]
[401148964,1767977496695,-348.97106777,0.00023805,25]
[401148965,1767977496704,-198.97497566,0.00023873,56]
[401148966,1767977496713,-161.99,0.000239,7]
[401148967,1767977496722,-164.12,0.000239,7]
[401148968,1767977496731,-348.97106777,0.00023945,32]
[401148969,1767977496741,-654.53799371,0.00023955,17]
[401148970,1767977496751,-500.0,0.00023966,2]
[401148971,1767977496760,-20015.44201214,0.00024,2]
[401148972,1767977496770,-1041.66666667,0.00024,7]
[401148973,1767977496784,-1610.24,0.00024,14]
[401148974,1767977496793,-210.62092521,0.00024011,63]
[401148975,1767977496803,-1200.0,0.00024014,2]
[401148976,1767977496813,-472.2,0.0002404,2]
[401148977,1767977496824,-1200.0,0.00024043,2]
[401148978,1767977496834,-1200.0,0.0002405,2]
[401148979,1767977496843,-500.0,0.00024057,2]
[401148980,1767977496853,-193.0,0.00024082,12]
[401148981,1767977496862,-348.97106777,0.00024086,40]
[401148982,1767977496871,-1500.0,0.00024096,2]
[401148983,1767977496881,-604.35118412,0.000241,2]
[401148984,1767977496890,-20522.02,0.000241,2]
[401148985,1767977496899,-250.0,0.000241,2]
[401148986,1767977496908,-251.3,0.000241,2]
[401148987,1767977496918,-731.07580657,0.0002411,2]
[401148988,1767977496927,-159.31613234,0.00024115,74]
[401148989,1767977496938,-452590.41182328,0.00024142,2]
[401148990,1767977496947,-10416.27829193,0.00024142,2]
[401148991,1767977496955,-335.0,0.00024164,7]
[401148992,1767977496964,-50280.44720303,0.000242,2]
[401148993,1767977496974,-348.97106777,0.00024227,48]
[401148994,1767977496983,-160.0,0.00024267,3]
[401148995,1767977496992,-210.62092521,0.00024287,79]
[401148996,1767977497002,-611.15,0.000243,2]
[401148997,1767977497011,-167.68,0.000243,7]
[401148998,1767977497020,-767.7842514,0.00024329,2]
[401148999,1767977497029,-3709.10266379,0.00024329,2]
[401149000,1767977497039,-1200.0,0.00024346,2]
[401149001,1767977497048,-348.97106777,0.00024367,56]
[401149002,1767977497057,-159.31613234,0.00024435,92]
[401149003,1767977497066,-1200.0,0.00024465,2]
[401149004,1767977497075,-467.25,0.000245,7]
[401149005,1767977497085,-350.0,0.000245,7]
[401149006,1767977497094,-348.97106777,0.00024508,63]
[401149007,1767977497103,-210.62092521,0.00024562,94]
[401149008,1767977497121,-901.06976685,0.00024568,2]
[401149009,1767977497140,-2000.0,0.00024569,7]
[401149010,1767977497158,-500.0,0.00024596,2]
[401149011,1767977497178,-500.0,0.00024596,2]
[401149012,1767977497204,-500.0,0.00024596,2]
[401149013,1767977497225,-500.0,0.00024596,2]
[401149014,1767977497248,-500.0,0.00024596,2]
[401149015,1767977497263,-500.0,0.00024596,2]
[401149016,1767977497282,-500.0,0.00024596,2]
[401149017,1767977497302,-500.0,0.00024596,2]
[401149018,1767977497326,-500.0,0.00024596,2]
[401149019,1767977497339,-500.0,0.00024596,2]
[401149020,1767977497359,-500.0,0.00024596,2]
[401149021,1767977497375,-500.0,0.00024596,2]
[401149022,1767977497391,-500.0,0.00024596,2]
[401149023,1767977497407,-500.0,0.00024596,2]
[401149024,1767977497423,-500.0,0.00024596,2]
[401149025,1767977497438,-500.0,0.00024596,2]
[401149026,1767977497452,-540.64696671,0.00024596,2]
[401149027,1767977497468,-7487.2250973,0.00024629,2]
[401149028,1767977497484,-1200.0,0.00024643,2]
[401149029,1767977497498,-348.97106777,0.00024649,71]
[401149030,1767977497513,-156194.63193843,0.0002465,2]
[401149031,1767977497526,-513.98569397,0.0002465,2]
[401149032,1767977497540,-1200.0,0.00024654,2]
[401149033,1767977497554,-200.0,0.00024658,2]
[401149034,1767977497568,-380.0,0.00024658,2]
[401149035,1767977497582,-500.0,0.00024658,2]
[401149036,1767977497595,-160.0,0.00024673,4]
[401149037,1767977497609,-654.53799371,0.00024689,19]
[401149038,1767977497622,-203.01,0.00024699,14]
[401149039,1767977497634,-142857.12,0.000247,3]
[401149040,1767977497648,-159.31613234,0.00024756,110]
[401149041,1767977497661,-16828.01382334,0.00024774,2]
[401149042,1767977497676,-348.97106777,0.00024789,79]
[401149043,1767977497690,-500.0,0.00024795,2]
[401149044,1767977497704,-4902.0,0.000248,4]
[401149045,1767977497718,-472.2,0.000248,2]
[401149046,1767977497731,-1200.0,0.00024816,2]
[401149047,1767977497745,-24435.1543903,0.0002483,2]
[401149048,1767977497759,-174.48553388,0.00024838,110]
[401149049,1767977497773,-198.97497566,0.00024838,110]
[401149050,1767977497788,-210.62092521,0.00024838,110]
[401149051,1767977497801,-1107.8261972,0.00024852,2]
[401149052,1767977497815,-10001.47397084,0.0002487,2]
[401149053,1767977497829,-796.19226871,0.00024877,2]
[401149054,1767977497842,-3846.33946235,0.00024877,2]
[401149055,1767977497857,-666342.077307,0.000249,2]
[401149056,1767977497870,-348.97106777,0.0002493,86]